Cogmind - Beta 13 @@@ ROGUE MODE // 2024.04.09 @ 16:56:45 Player: Rizzen Result: Destroyed self with Mini Grenade Launcher Performance ------------- Evolutions (1) 500 Regions Visited (2) 400 Robots Destroyed (63) 315 Value Destroyed (1083) 1083 Prototype IDs (2) 40 Alien Tech Used (0) 0 Bonus (38) 38 TOTAL SCORE: 2376 Bonus ------- High Alert Combat Kills 38 Cogmind --------- Core Integrity 0/400 Matter 123/300 Energy 160/160 System Corruption 0% Temperature Cool (6) Movement Flying (110) Ox1 Location -9/Materials Parts ------- > --- POWER (1) -------- Light Nuclear Core > --- PROPULSION (3) --- Improved Flight Unit > --- UTILITY (3) ------ Visual Processing Unit Signal Interpreter > --- WEAPON (2) ------- Grenade Launcher Mini Grenade Launcher > --- INVENTORY (5) ---- (None) Peak State ------------ > --- POWER ------------ Light Nuclear Core > --- PROPULSION ------- Improved Flight Unit > --- UTILITY ---------- Heat Sink Signal Interpreter Shield Generator > --- WEAPON ----------- Grenade Launcher Mini Grenade Launcher > --- INVENTORY -------- (None) [Rating: 13] Favorites ----------- Power Ion Engine Engine Ion Engine Power Core Light Nuclear Core Propulsion Hover Unit Wheel Compact Wheel Hover Unit Hover Unit Flight Unit Flight Unit Utility Signal Interpreter Device Heat Sink Storage Small Storage Unit Processor Signal Interpreter Protection Light Armor Plating Weapon Light Assault Rifle Energy Gun EM Pulse Gun Ballistic Gun Light Assault Rifle Launcher Grenade Launcher Special Weapon Mining Laser Build | -11 -10 -9 ------- Run | Yrd Mat Mat Slots Evolved 2 | . . 2 Power . | . . . Propulsion 1 | . . 1 Utility 1 | . . 1 Weapon . | . . . Parts Attached 43 | 8 24 11 Power 6 | 1 3 2 Engine 5 | 1 3 1 Core 1 | . . 1 Reactor . | . . . Propulsion 13 | 3 8 2 Treads . | . . . Leg . | . . . Wheel 3 | 3 . . Hover 4 | . 4 . Flight 6 | . 4 2 Utility 11 | 2 5 4 Device 7 | 1 4 2 Storage 1 | 1 . . Processor 2 | . 1 1 Hackware . | . . . Protection 1 | . . 1 Artifact . | . . . Weapon 13 | 2 8 3 Energy Gun 2 | . 2 . Energy Cannon . | . . . Ballistic Gun 5 | 2 2 1 Ballistic Cannon . | . . . Launcher 2 | . . 2 Special Weapon 4 | . 4 . Impact Weapon . | . . . Slashing Weapon . | . . . Piercing Weapon . | . . . Special Melee Weapon . | . . . Unidentified Prototypes 2 | . . 2 Parts Lost 18 | . 10 8 Power 2 | . 1 1 Propulsion 6 | . 4 2 Utility 4 | . 1 3 Weapon 6 | . 4 2 Highest Loss Streak 5 | . 5 5 To Critical Strikes . | . . . Average Slot Usage (%) 74 | . 79 65 Engine 6 | . 8 2 Core 2 | . . 7 Wheel 3 | . 4 . Hover 8 | . 9 5 Flight 7 | . 9 4 Device 11 | . 11 12 Storage 1 | . 2 . Processor 8 | . 6 11 Energy Gun 6 | . 8 4 Ballistic Gun 9 | . 13 3 Launcher 4 | . . 11 Special Weapon 2 | . 3 . Naked Turns . | . . . Heaviest Build 15 | 14 14 15 Greatest Support 32 | 32 32 12 Greatest Overweight (x) 4 | . 3 4 Average Overweight (x) . | . . . Largest Inventory Capacity 8 | 8 8 5 Average Capacity 5 | 7 5 5 Most Carried 8 | 5 8 2 Average Carried 1 | 2 2 . Final Capacity 8 | 8 5 5 Final Carried 4 | 4 . . Class Distribution -------------------- 82% | Mutant 17% | Scavenger-Mutant Dominant Class ---------------- Mutant | -10/Materials Mutant | -9/Materials Resources | -11 -10 -9 ----------- Run | Yrd Mat Mat Matter Collected 993 | 364 375 254 Remotely . | . . . Salvage Created 1379 | 155 714 510 Parts 114 | 12 60 42 Haulers Intercepted 5 | . 2 3 Recyclers Shooed 4 | 1 2 1 Parts Field Recycled . | . . . Retrieved Matter . | . . . Parts Self-Destructed . | . . . Prevented . | . . . Kills | -11 -10 -9 ------- Run | Yrd Mat Mat Combat Hostiles Destroyed 31 | . 17 14 Guns 13 | . 13 . Cannons 2 | . 2 . AOE 16 | . 2 14 Classes Destroyed 10 | 3 6 1 Worker 6 | 1 4 1 Builder 3 | . 2 1 Tunneler 6 | 4 1 1 Hauler 5 | . 2 3 Recycler 3 | 1 . 2 Operator 2 | . 2 . Watcher 7 | . 3 4 Swarmer 13 | . 6 7 Grunt 15 | . 11 4 Sentry 3 | . . 3 Best Kill Streak 8 | 3 6 8 Combat Bots Only 6 | . 3 6 Max Kills in Single Turn 3 | 1 2 3 Gunslinging . | . . . Exploded 2 | . 1 2 Melee . | . . . Uniques/NPCs Destroyed . | . . . Combat | -11 -10 -9 -------- Run | Yrd Mat Mat Hostile Shots Fired 233 | . 130 103 Missed 74 | . 39 35 Damage Taken 1825 | . 949 876 Core 652 | . 249 403 Absorbed by Shields 6 | . . 6 Core Remaining (%) 50 | 100 . . Volleys Fired 160 | 21 110 29 Largest 2 | 2 2 2 Hottest 200 | 40 200 80 Shots Fired 299 | 42 203 54 Gun 251 | 42 187 22 Cannon . | . . . Launcher 32 | . . 32 Special 16 | . 16 . Kinetic 203 | 42 155 6 Thermal 16 | . 16 . Explosive 32 | . . 32 Electromagnetic 48 | . 32 16 Robot Hit Streak 12 | 6 7 12 Robot Miss Streak 5 | 4 5 2 Penetration Max . | . . . Secondary Targets 1 | . 1 . Max Gunslinging Chain 1 | . 1 . Shots Hit Robots 161 | 22 110 29 Core Hits 109 | 9 50 50 Critical Kills 1 | 1 . . Critical Parts Destroyed . | . . . Critical Strikes 1 | 1 . . Destroy 1 | 1 . . Melee Attacks . | . . . Impact . | . . . Slashing . | . . . Piercing . | . . . Sneak Attacks . | . . . Combat Hostiles . | . . . Follow-up Attacks . | . . . Damage Inflicted 3778 | 264 1611 1903 Guns 1450 | 264 1039 147 Cannons . | . . . Explosions 2131 | . 375 1756 Melee . | . . . Ramming 5 | . 5 . Kinetic 1048 | 264 758 26 Thermal 380 | . 305 75 Explosive 1898 | . 217 1681 Electromagnetic 447 | . 326 121 Impact . | . . . Slashing . | . . . Piercing . | . . . Highest Corruption 1 | . 1 . Average Corruption 1 | . 1 . Corruption Purged . | . . . Corruption Blocked . | . . . Overload Shots . | . . . Overflow Damage 221 | . 123 98 Projectiles 4 | . 4 . Explosions 217 | . 119 98 Melee . | . . . Knockbacks . | . . . Impact . | . . . Kinetic . | . . . Secondary . | . . . Self-Inflicted Damage 239 | . 72 167 Shots 7 | . 1 6 Rammed 1 | . 1 . Targets Rammed 1 | . 1 . Kicked . | . . . Crushed . | . . . Highest Temperature 120 | . 120 73 Average Temperature 20 | . 19 25 Received Heat Transfer 428 | . 264 164 Siege Activations . | . . . Robots Corrupted 1 | . . 1 Combat Hostiles . | . . . Parts Fried 4 | . 3 1 Impact Corruptions . | . . . Robots Melted . | . . . Combat Hostiles . | . . . Parts Melted . | . . . Heat Transferred 600 | . 500 100 Parts Sabotaged . | . . . Parts Stolen . | . . . Parts Stripped . | . . . Power Chain Reactions 3 | . 2 1 Alert | -11 -10 -9 ------- Run | Yrd Mat Mat Peak Influence 555 | 30 355 555 Initial 120 | . 19 120 Average 223 | 9 195 330 Maximum Alert Level 2 | . 1 2 Low Security (%) 45 | 100 45 30 Level 1 41 | . 54 29 Level 2 13 | . . 40 Level 3 . | . . . Level 4 . | . . . Level 5 . | . . . High Security . | . . . Max Security . | . . . Squads Dispatched 6 | . 5 1 Investigation 4 | . 3 1 Extermination . | . . . Reinforcement 2 | . 2 . Assault . | . . . Garrison . | . . . Intercept . | . . . Searches Triggered . | . . . Construction Impeded . | . . . Haulers Reinforced . | . . . Active Scanning Responses . | . . . Cargo Convoy Interrupts . | . . . Stealth | -11 -10 -9 --------- Run | Yrd Mat Mat Distress Signals 1 | . . 1 Communications Jammed . | . . . Distress Signals . | . . . Times Spotted 67 | . 40 27 Peak Tracking Total 10 | . 4 10 Tactical Retreats 4 | . 2 2 Traps | -11 -10 -9 ------- Run | Yrd Mat Mat Traps Triggered 2 | . 1 1 Indirectly . | . . . Trap Hack Attempts . | . . . Triggered . | . . . Disarmed . | . . . Reprogrammed . | . . . Reused . | . . . Traps Extracted . | . . . Installed . | . . . Triggered . | . . . Machines | -11 -10 -9 ---------- Run | Yrd Mat Mat Machines Disabled 6 | . 3 3 Max in Single Turn 2 | . 2 1 Machines Repaired . | . . . Machines Dismantled . | . . . Machines Sabotaged . | . . . Overloaded Fab Kills . | . . . Hacking | -11 -10 -9 --------- Run | Yrd Mat Mat Machines Accessed 8 | . 7 1 Terminals 7 | . 6 1 Fabricators . | . . . Repair Stations . | . . . Recycling Units 1 | . 1 . Scanalyzers . | . . . Garrison Access . | . . . Total Hacks 15 | . 14 1 Successful 9 | . 8 1 Failed 6 | . 6 . Catastrophic 1 | . 1 . Database Lockouts . | . . . Manual 13 | . 12 1 Terminals 12 | . 11 1 Fabricators . | . . . Repair Stations . | . . . Recycling Units 3 | . 3 . Scanalyzers . | . . . Garrison Access . | . . . Terminal Hacks . | . . . Fabricator Hacks . | . . . Repair Station Hacks . | . . . Recycling Unit Hacks 2 | . 2 . Report Inventory 2 | . 2 . Scanalyzer . | . . . Garrison Access Hacks . | . . . Unauthorized Hacks 6 | . 5 1 Terminals 6 | . 5 1 Botnet 6 | . 5 1 Fabricators . | . . . Repair Stations . | . . . Recycling Units . | . . . Scanalyzers . | . . . Garrison Access . | . . . Data Cores Recovered . | . . . Used . | . . . Hacking Detections 4 | . 4 . Full Trace Events 3 | . 3 . Feedback Events 1 | . 1 . Corruption 1 | . 1 . Feedback Blocked . | . . . Robot Schematics Acquired . | . . . Robots Built . | . . . Authchips . | . . . Time . | . . . Total Robot Build Rating . | . . . Part Schematics Acquired . | . . . Parts Built . | . . . Authchips . | . . . Time . | . . . Total Part Build Rating . | . . . Parts Repaired . | . . . Time . | . . . Parts Recycled . | . . . Recycled Matter . | . . . Retrieved Matter . | . . . Retrieved Components . | . . . Parts Scanalyzed . | . . . Part Schematics Acquired . | . . . Parts Damaged . | . . . Bothacking | -11 -10 -9 ------------ Run | Yrd Mat Mat Used RIF Installer . | . . . Robots Hacked . | . . . Non-combat . | . . . Combat . | . . . Robot Hacks Applied . | . . . Relay Couplers Released . | . . . Fabnet Peak Effective % . | . . . Robots Rewired . | . . . Allies Hacked . | . . . Hacks Repelled . | . . . Allies | -11 -10 -9 -------- Run | Yrd Mat Mat Total Allies . | . . . Largest Group . | . . . Highest-Rated Group . | . . . Highest-Rated Ally . | . . . Total Orders . | . . . Ally Attacks . | . . . Total Damage . | . . . Kills . | . . . Allies Corrupted . | . . . Allies Melted . | . . . Intel | -11 -10 -9 ------- Run | Yrd Mat Mat Robot Analysis Total . | . . . Derelict Logs Recovered . | . . . Drone Launches . | . . . Drone Recoveries . | . . . Exploration | -11 -10 -9 ------------- Run | Yrd Mat Mat Turns Passed 1654 | 152 946 556 Spaces Moved 1210 | 74 712 424 Core 99 | 4 . 95 Treads . | . . . Legs . | . . . Wheels 178 | 70 108 . Hover 500 | . 308 192 Flight 433 | . 296 137 Fastest Speed 37 | 50 37 50 Average Speed 79 | 91 62 105 Slowest Speed 285 | 100 285 250 Overloaded Moves . | . . . Propulsion Burnouts . | . . . Robots Hopped 2 | . 2 . Cave-ins Triggered . | . . . Exploration Rate (%) 41 | 5 86 32 Regions Visited 2 Branch Regions . Pre-discovered Areas . | . . . Known Exits Taken 1 | . 1 . Unknown Exits Taken 1 | 1 . . Scrap Searched . | . . . Spaces Dug . | . . . Terrain Destroyed 231 | . 59 172 Melee . | . . . Projectile . | . . . AOE 231 | . 59 172 Terrain Rammed . | . . . Walls Destroyed . | . . . Machines Disabled . | . . . Actions | -11 -10 -9 --------- Run | Yrd Mat Mat Total 1611 | 121 1007 483 Wait 132 | 2 125 5 Move 1204 | 73 707 424 Hop 2 | . 2 . Pick Up 45 | 14 21 10 Fast Attach . | . . . Attach 34 | 7 17 10 Detach 2 | . 1 1 Swap 9 | 1 7 1 Drop 22 | 3 16 3 Fire 160 | 21 110 29 Melee . | . . . Ram 1 | . 1 . Kick . | . . . Crush . | . . . Escape Stasis . | . . . Rewire . | . . . Trap . | . . . Miscellaneous . | . . . Route ------- -11/Scrapyard -10/Materials (discovered 4 exits: *Mat x2 / *Min x2) -9/Materials History --------- Turn | Location | Event 21 | -11/Scrapyard | Discovered new exit (range 16) 153 | -11/Scrapyard | Entered Materials 303 | -10/Materials | Build established: Mutant 470 | -10/Materials | Discovered new exit (range 15) 513 | -10/Materials | Core integrity fell below 50% 543 | -10/Materials | Lost 5 parts (1p2n1u1w) 601 | -10/Materials | Discovered new exit (range 16) 693 | -10/Materials | Identified exit to Mines 704 | -10/Materials | Lost 3 parts (1n2w) 801 | -10/Materials | Discovered new exit (range 10) 801 | -10/Materials | Discovered exit to Mines (range 14) 901 | -10/Materials | Core integrity fell below 20% 1098 | -10/Materials | Identified exit to Materials 1099 | -10/Materials | Entered another Materials area 1099 | -9/Materials | Evolved 2 slots: Propulsion x1, Utility x1 1267 | -9/Materials | Lost 5 parts (1p2n2w) 1267 | -9/Materials | Core integrity fell below 50% 1640 | -9/Materials | Core integrity fell below 20% 1655 | -9/Materials | Destroyed self with Mini Grenade Launcher Last Messages --------------- 01627_ Destroyed Lgt. Ion Engine. 01627_ S-10 Pest destroyed. 01628_ W-16 Scout sends out distress signal. 01630_ S-10 Pest destroyed. 01630_ Destroyed Mining Laser. 01633_ K-01 Serf collects debris. 01634_ Acquired 10 matter. 01635_ W-16 Scout destroyed. 01636_ K-01 Serf collects debris. 01644_ K-01 Serf cleans the Recycling Unit. 01645_ R-06 Scavenger collects Lgt. EM Pulse Cannon. 01647_ K-01 Serf cleans the Recycling Unit. 01647_ Critical hit (Burn: +37). 01649_ K-01 Serf collects debris. 01650_ R-06 Scavenger destroyed. 01652_ K-01 Serf cleans the Electrolysis Chamber. 01654_ The unstable cave ceiling collapses. 01655_ Y-45 Defender destroyed. Map ----- +----------------------------------------------------+ | ?????????????????????????????????????????????????? | | ?????????????????????????????????????????????????? | | ?????????????????????????????????????????????????? | | ?????????????????????????????????????????????????? | | ?????????????????????????????????????????????????? | | ?????????????????????????????????????????????????? | | ?????????????????????????????????????????????????? | | ?????????????????????????????????????????????????? | | ?????????????????????????????????????????????????? | | ????????????????????????????? ???????????????????? | | ???????????????????????????? ??????????????????? | | ???????????????????????????? ""?? ??????????????? | | ???????????????????????????? """ ???????????? | | ##??????????????????######## k""" #??????????? | | #######???????###### ## #??????????? | | ######### # # # g #??????????? | | ??????????? | | [ g ???????????? | | [a ???????????? | | ####### ]%= #????????????? | | ####+#####???# ## #????????????? | | #???# ## """ * k #????????????? | | """ #???# ## """ %! "Y" #????????????? | | """"" #???# ## """ """ k??????????????? | | """"" #???# ## ]]] ????????????????? | | """"" #???# ## """ ]@ #??? ??????????????? | | """ #???# ## """ ]] #?????#???????????????? | | #???# ## """ #?????????????????????? | | #???# ## #?????????????????????? | | ##########???# ###########?????????????????????? | | #????????????# #???????????????????????????????? | | ?????????????# #???????????????????????????????? | | ?????????????# #???????????????????????????????? | | ##???????????# #???????????????????????????????? | | #####???????# #???????????????????????????????? | | #???????# ##??????????????????????????????? | | #???????# "#??????????????????????????????? | | """ #???????# %"#??????????????????????????????? | | """ ######### "#??????????????????????????????? | | """ ## # ##??????????????????????????????? | | ## # #???????????????????????????????? | | #######""" # #???????????????????????????????? | | ??????#""" # #???????????????????????????????? | | #?????#""" + #???????????????????????????????? | | #?????# # #???????????????????????????????? | | #???########## #???????????????????????????????? | | #???# # #???????????????????????????????? | | #???# """ # #???????????????????????????????? | | #???# """ # #???????????????????????????????? | | ##### """ # #???????????????????????????????? | +----------------------------------------------------+ Best States ------------- Heat Dissipation 38 Energy Generation 14 Energy Capacity 280 Matter Stores 300 Matter Capacity 300 Sight Range 18 Robot Scan Range 14 Terrain Scan Density 10 ECM Strength 1 Armor Coverage 150 Evasion (%) 62 Item Schematics ----------------- None Robot Schematics ------------------ None Fabricated ------------ Nothing Alien Tech Used ----------------- None Achievements -------------- Quantum Hacking True Hacker Challenges ------------ None Game ------ Seed AutogunSubatomicWand Manual? 0 Play Time 00:25:03 Cumulative 22.4 hours Start 2024.04.09 @ 16:30:40 End 2024.04.09 @ 16:56:45 Sessions 1 Manual Loads 0 Difficulty Rogue Special Mode None Game No. 16 Rogue 16 Adventurer 0 Explorer 0 Win Type - Total 0 Types 0/0/0/0/0/0/0/0/0 Lore% 14 Gallery% 21 Achievement% 17 Wizard Run 0 Options --------- Layout 1 ASCII 0 Keyboard 0 Movement Mouse Keybinds 0 Fullscreen 1 Font 32/SmallcapsGlow Map View 50x35 Zoom Use 0% Tactical HUD 1 Map Filters NONE Filters NONE Steam 0 RUN: 94ce8b72-84a5-4532-aa9c-0f7589179ec2